fUST/lending_fUST_20241227
["ID","MTS","AMOUNT","RATE_DAILY","PERIOD"]
[346730049,1735253447221,-500.0,0.00016652,2]
[346730050,1735253447231,-500.0,0.00016652,2]
[346730051,1735253447241,-500.0,0.00016652,2]
[346730052,1735253447250,-500.0,0.00016652,2]
[346730053,1735253447259,-500.0,0.00016652,2]
[346730054,1735253447269,-500.0,0.00016652,2]
[346730055,1735253447278,-500.0,0.00016652,2]
[346730056,1735253447287,-500.0,0.00016652,2]
[346730057,1735253447297,-500.0,0.00016652,2]
[346730058,1735253447306,-500.0,0.00016652,2]
[346730059,1735253447316,-500.0,0.00016652,2]
[346730060,1735253447326,-758.33,0.00016652,2]
[346730061,1735253447335,-500.0,0.00016652,2]
[346730062,1735253447345,-500.0,0.00016652,2]
[346730063,1735253447355,-500.0,0.00016652,2]
[346730064,1735253447364,-400.57267527,0.00016652,2]
[346730065,1735253447374,-500.0,0.00016652,2]
[346730066,1735253447385,-500.0,0.00016652,2]
[346730067,1735253447395,-500.0,0.00016652,2]
[346730068,1735253447404,-500.0,0.00016652,2]
[346730069,1735253447413,-500.0,0.00016652,2]
[346730070,1735253447423,-500.0,0.00016652,2]
[346730071,1735253447434,-500.0,0.00016652,2]
[346730072,1735253447444,-500.0,0.00016652,2]
[346730073,1735253447453,-500.0,0.00016652,2]
[346730074,1735253447463,-500.0,0.00016652,2]
[346730075,1735253447473,-500.0,0.00016652,2]
[346730076,1735253447482,-493.07286545,0.00016652,2]
[346730077,1735253447491,-500.0,0.00016652,2]
[346730078,1735253447501,-500.0,0.00016652,2]
[346730079,1735253447510,-500.0,0.00016652,2]
[346730080,1735253447519,-500.0,0.00016652,2]
[346730081,1735253447528,-500.0,0.00016652,2]
[346730082,1735253447538,-500.0,0.00016652,2]
[346730083,1735253447547,-500.0,0.00016652,2]
[346730084,1735253447556,-500.0,0.00016652,2]
[346730085,1735253447566,-631.42,0.00016652,2]
[346730086,1735253447575,-500.0,0.00016652,2]
[346730087,1735253447584,-513.8,0.00016652,2]
[346730088,1735253447594,-500.0,0.00016652,2]
[346730089,1735253447603,-500.0,0.00016652,2]
[346730090,1735253447613,-500.0,0.00016652,2]
[346730091,1735253447622,-500.0,0.00016652,2]
[346730092,1735253447631,-500.0,0.00016652,2]
[346730093,1735253447641,-500.0,0.00016652,2]
[346730094,1735253447650,-500.0,0.00016652,2]
[346730095,1735253447660,-500.0,0.00016652,2]
[346730096,1735253447670,-500.0,0.00016652,2]
[346730097,1735253447679,-500.0,0.00016652,2]
[346730098,1735253447688,-500.0,0.00016652,2]
[346730099,1735253447697,-500.0,0.00016652,2]
[346730100,1735253447786,-561.79509639,0.00016652,2]
[346730101,1735253447796,-500.0,0.00016652,2]
[346730102,1735253447806,-611.2,0.00016652,2]
[346730103,1735253447815,-500.0,0.00016652,2]
[346730104,1735253447824,-500.0,0.00016652,2]
[346730105,1735253447834,-2966.22,0.00016652,2]
[346730106,1735253447843,-2966.22,0.00016652,2]
[346730107,1735253447853,-2966.22,0.00016652,2]
[346730108,1735253447862,-2966.22,0.00016652,2]
[346730109,1735253447872,-500.0,0.00016652,2]
[346730110,1735253447881,-1538.01,0.00016652,2]
[346730111,1735253447894,-612.07397462,0.00016652,2]
[346730112,1735253447903,-500.0,0.00016652,2]
[346730113,1735253447913,-500.0,0.00016652,2]
[346730114,1735253447923,-500.0,0.00016652,2]
[346730115,1735253447933,-500.0,0.00016652,2]
[346730116,1735253447943,-500.0,0.00016652,2]
[346730117,1735253447953,-500.0,0.00016652,2]
[346730118,1735253447963,-500.0,0.00016652,2]
[346730119,1735253447973,-500.0,0.00016652,2]
[346730120,1735253447983,-585.27623402,0.00016652,2]
[346730121,1735253447993,-500.0,0.00016652,2]
[346730122,1735253448002,-500.0,0.00016652,2]
[346730123,1735253448012,-500.0,0.00016652,2]
[346730124,1735253448021,-500.0,0.00016652,2]
[346730125,1735253448031,-500.0,0.00016652,2]
[346730126,1735253448040,-535.79504442,0.00016652,2]
[346730127,1735253448050,-500.0,0.00016652,2]
[346730128,1735253448059,-500.0,0.00016652,2]
[346730129,1735253448069,-1018.77,0.00016652,2]
[346730130,1735253448079,-189.54407714,0.00016652,2]
[346730131,1735253448089,-500.0,0.00016652,2]
[346730132,1735253448098,-1511.28,0.00016652,2]
[346730133,1735253448109,-500.0,0.00016652,2]
[346730134,1735253448118,-884.26,0.00016652,2]
[346730135,1735253448128,-500.0,0.00016652,2]
[346730136,1735253448138,-721.66,0.00016652,2]
[346730137,1735253448148,-500.0,0.00016652,2]
[346730138,1735253448158,-500.0,0.00016652,2]
[346730139,1735253448168,-500.0,0.00016652,2]
[346730140,1735253448178,-500.0,0.00016652,2]
[346730141,1735253448187,-500.0,0.00016652,2]
[346730142,1735253448198,-500.0,0.00016652,2]
[346730143,1735253448208,-500.0,0.00016652,2]
[346730144,1735253448217,-500.0,0.00016652,2]
[346730145,1735253448228,-500.0,0.00016652,2]
[346730146,1735253448238,-500.0,0.00016652,2]
[346730147,1735253448248,-500.0,0.00016652,2]
[346730149,1735253448258,-500.0,0.00016652,2]
[346730151,1735253448267,-500.0,0.00016652,2]
[346730153,1735253448277,-500.0,0.00016652,2]
[346730155,1735253448287,-500.0,0.00016652,2]
[346730157,1735253448296,-500.0,0.00016652,2]
[346730159,1735253448306,-500.0,0.00016652,2]
[346730161,1735253448316,-500.0,0.00016652,2]
[346730163,1735253448325,-500.0,0.00016652,2]
[346730165,1735253448334,-500.0,0.00016652,2]
[346730167,1735253448344,-500.0,0.00016652,2]
[346730169,1735253448354,-500.0,0.00016652,2]
[346730171,1735253448363,-500.0,0.00016652,2]
[346730172,1735253448372,-500.0,0.00016652,2]
[346730174,1735253448382,-500.0,0.00016652,2]
[346730176,1735253448391,-513.88947205,0.00016652,2]
[346730179,1735253448401,-500.0,0.00016652,2]
[346730180,1735253448411,-500.0,0.00016652,2]
[346730182,1735253448421,-622.02,0.00016652,2]
[346730184,1735253448431,-500.0,0.00016652,2]
[346730186,1735253448440,-500.0,0.00016652,2]
[346730188,1735253448450,-500.0,0.00016652,2]
[346730190,1735253448460,-500.0,0.00016652,2]
[346730193,1735253448469,-500.0,0.00016652,2]
[346730195,1735253448479,-500.0,0.00016652,2]
[346730196,1735253448488,-500.0,0.00016652,2]
[346730198,1735253448498,-500.0,0.00016652,2]
[346730200,1735253448507,-500.0,0.00016652,2]
[346730201,1735253448516,-500.0,0.00016652,2]
[346730202,1735253448526,-1780.0,0.00016652,2]
[346730203,1735253448535,-500.0,0.00016652,2]
[346730204,1735253448544,-500.0,0.00016652,2]
[346730206,1735253448556,-500.0,0.00016652,2]
[346730207,1735253448565,-222.60795528,0.00016652,2]
[346730209,1735253448575,-500.0,0.00016652,2]
[346730211,1735253448584,-500.0,0.00016652,2]
[346730213,1735253448593,-682.14,0.00016652,2]
[346730215,1735253448602,-311.9836919,0.00016652,2]
[346730217,1735253448611,-500.0,0.00016652,2]
[346730219,1735253448620,-500.0,0.00016652,2]
[346730221,1735253448630,-500.0,0.00016652,2]
[346730223,1735253448639,-500.0,0.00016652,2]
[346730225,1735253448648,-500.0,0.00016652,2]
[346730227,1735253448658,-931.2,0.00016652,2]
[346730229,1735253448667,-1000.0,0.00016652,2]
[346730231,1735253448676,-500.0,0.00016652,2]
[346730233,1735253448686,-183.83691903,0.00016652,2]
[346730235,1735253448695,-500.0,0.00016652,2]
[346730237,1735253448704,-500.0,0.00016652,2]
[346730239,1735253448714,-500.0,0.00016652,2]
[346730241,1735253448723,-534.85030455,0.00016652,2]
[346730243,1735253448732,-500.0,0.00016652,2]
[346730245,1735253448742,-4380.37,0.00016652,2]
[346730247,1735253448751,-500.0,0.00016652,2]
[346730249,1735253448760,-500.0,0.00016652,2]
[346730251,1735253448769,-500.0,0.00016652,2]
[346730253,1735253448779,-500.0,0.00016652,2]
[346730255,1735253448789,-500.0,0.00016652,2]
[346730257,1735253448798,-500.0,0.00016652,2]
[346730259,1735253448807,-500.0,0.00016652,2]
[346730261,1735253448817,-617.16,0.00016652,2]
[346730262,1735253448826,-617.16,0.00016652,2]
[346730263,1735253448835,-617.16,0.00016652,2]
[346730264,1735253448844,-617.16,0.00016652,2]
[346730265,1735253448853,-485.70053789,0.00016653,2]
[346730266,1735253448862,-497.4566339,0.00016653,2]
[346730267,1735253448871,-500.0,0.00016653,2]
[346730268,1735253448880,-500.0,0.00016653,2]
[346730269,1735253448893,-500.0,0.00016653,2]
[346730270,1735253448902,-500.0,0.00016653,2]
[346730271,1735253448911,-500.0,0.00016653,2]
[346730272,1735253448921,-500.0,0.00016653,2]
[346730273,1735253448930,-500.0,0.00016653,2]
[346730274,1735253448939,-500.0,0.00016653,2]
[346730275,1735253448948,-500.0,0.00016653,2]
[346730276,1735253448957,-500.0,0.00016653,2]
[346730277,1735253448966,-500.0,0.00016653,2]
[346730278,1735253448975,-508.89144588,0.00016653,2]
[346730279,1735253448985,-619.41033893,0.00016653,2]
[346730280,1735253448994,-500.0,0.00016653,2]
[346730281,1735253449002,-390.39504482,0.00016653,2]
[346730283,1735253449012,-502.30633396,0.00016653,2]
[346730284,1735253449021,-500.0,0.00016653,2]
[346730292,1735253449096,-500.0,0.00016653,2]
[346730295,1735253449105,-500.0,0.00016653,2]
[346730297,1735253449115,-500.0,0.00016653,2]
[346730299,1735253449125,-1664.19,0.00016653,2]
[346730301,1735253449134,-500.0,0.00016653,2]
[346730303,1735253449144,-244.54375775,0.00016653,2]
[346730305,1735253449154,-500.0,0.00016653,2]
[346730307,1735253449163,-500.0,0.00016653,2]
[346730309,1735253449173,-500.0,0.00016653,2]
[346730311,1735253449184,-500.0,0.00016653,2]
[346730313,1735253449195,-500.0,0.00016653,2]
[346730315,1735253449205,-500.0,0.00016653,2]
[346730317,1735253449214,-547.15,0.00016653,2]
[346730318,1735253449224,-500.0,0.00016653,2]
[346730321,1735253449234,-500.0,0.00016653,2]
[346730323,1735253449244,-500.0,0.00016653,2]
[346730325,1735253449253,-500.0,0.00016653,2]
[346730327,1735253449263,-500.0,0.00016653,2]
[346730329,1735253449273,-500.0,0.00016653,2]
[346730331,1735253449282,-500.0,0.00016653,2]
[346730333,1735253449294,-500.0,0.00016653,2]
[346730335,1735253449304,-500.0,0.00016653,2]
[346730337,1735253449314,-500.0,0.00016653,2]
[346730339,1735253449323,-500.0,0.00016653,2]
[346730341,1735253449332,-150.0,0.00016653,2]
[346730343,1735253449342,-500.0,0.00016653,2]
[346730345,1735253449351,-500.0,0.00016653,2]
[346730347,1735253449360,-500.0,0.00016653,2]
[346730349,1735253449370,-500.0,0.00016653,2]
[346730350,1735253449381,-1289.2,0.00016653,2]
[346730352,1735253449391,-500.0,0.00016653,2]
[346730355,1735253449401,-500.0,0.00016653,2]
[346730357,1735253449410,-500.0,0.00016653,2]
[346730358,1735253449419,-500.0,0.00016653,2]
[346730360,1735253449429,-500.0,0.00016653,2]
[346730362,1735253449439,-500.0,0.00016653,2]
[346730364,1735253449448,-500.0,0.00016654,2]
[346730366,1735253449458,-2966.22,0.00016654,2]
[346730368,1735253449468,-500.0,0.00016654,2]
[346730370,1735253449477,-500.0,0.00016654,2]
[346730372,1735253449486,-617.16,0.00016654,2]
[346730373,1735253449495,-617.16,0.00016654,2]
[346730374,1735253449505,-500.0,0.00016655,2]
[346730375,1735253449514,-2966.22,0.00016655,2]
[346730376,1735253449523,-500.0,0.00016655,2]
[346730377,1735253449533,-151.0,0.00016655,2]
[346730379,1735253449542,-151.0,0.00016655,2]
[346730381,1735253449552,-151.0,0.00016655,2]
[346730383,1735253449562,-500.0,0.00016656,2]
[346730385,1735253449571,-11147.53,0.00016656,2]
[346730387,1735253449580,-151.0,0.00016656,2]
[346730389,1735253449590,-551.217985,0.00016656,2]
[346730391,1735253449599,-551.217985,0.00016656,2]
[346730393,1735253449610,-1442.54,0.00016656,2]
[346730395,1735253449620,-298.149067,0.00016656,2]
[346730397,1735253449629,-298.149067,0.00016656,2]
[346730399,1735253449638,-180.724666,0.00016656,2]
[346730401,1735253449647,-180.724666,0.00016656,2]
[346730404,1735253449657,-151.0,0.00016656,2]
[346730405,1735253449666,-151.0,0.00016656,2]
[346730407,1735253449675,-500.0,0.00016656,2]
[346730410,1735253449686,-151.0,0.00016656,2]
[346730411,1735253449695,-500.0,0.00016656,2]
[346730413,1735253449704,-223.391386,0.00016656,2]
[346730416,1735253449714,-151.0,0.00016656,2]
[346730417,1735253449723,-223.391386,0.00016656,2]
[346730419,1735253449732,-151.0,0.00016656,2]
[346730421,1735253449741,-151.0,0.00016656,2]
[346730423,1735253449751,-245.518177,0.00016656,2]
[346730425,1735253449760,-151.0,0.00016656,2]
[346730427,1735253449769,-151.0,0.00016656,2]
[346730429,1735253449778,-151.0,0.00016656,2]
[346730431,1735253449788,-151.0,0.00016656,2]
[346730433,1735253449797,-202.893189,0.00016656,2]
[346730435,1735253449806,-202.893189,0.00016656,2]
[346730437,1735253449815,-748.66932147,0.00016657,2]
[346730439,1735253449825,-8263.91,0.00016657,2]
[346730441,1735253449836,-617.16,0.00016657,2]
[346730443,1735253449845,-2966.22,0.00016658,2]
[346730445,1735253449856,-1000.0,0.00016659,2]
[346730447,1735253449865,-214.2328397,0.000167,2]
[346730449,1735253449875,-5507.98594215,0.00016726,2]
[346730451,1735253449889,-1531.23757642,0.00016758,2]
[346730454,1735253449899,-151.0,0.00016826,2]
[346730455,1735253449908,-151.0,0.00016826,2]
[346730457,1735253449917,-534.053,0.0001687,2]
[346730459,1735253449926,-500.0,0.00016873,2]
[346730462,1735253449936,-2401.83,0.00016873,2]
[346730464,1735253449945,-500.0,0.00016873,2]
[346730465,1735253449956,-964.1,0.00016873,2]
[346730467,1735253449966,-254.783,0.00016882,2]
[346730469,1735253449976,-2966.22,0.00016882,2]
[346730472,1735253449986,-151.0,0.00016883,2]
[346730474,1735253449997,-231.479558,0.00016883,2]
[346730476,1735253450006,-154.447584,0.00016883,2]
[346730478,1735253450016,-154.447584,0.00016883,2]
[346730479,1735253450025,-617.16,0.00016898,2]
[346730482,1735253450035,-500.0,0.00016918,2]
[346730483,1735253450044,-500.0,0.0001692,2]
[346730485,1735253450054,-500.0,0.0001692,2]
[346730487,1735253450063,-500.0,0.0001692,2]
[346730489,1735253450072,-500.0,0.0001692,2]
[346730491,1735253450081,-500.0,0.0001692,2]
[346730493,1735253450090,-500.0,0.0001692,2]
[346730495,1735253450100,-377.37949813,0.0001692,2]
[346730497,1735253450110,-500.0,0.0001692,2]
[346730499,1735253450119,-500.0,0.0001692,2]
[346730501,1735253450128,-500.0,0.0001692,2]
[346730503,1735253450137,-500.0,0.0001692,2]
[346730505,1735253450146,-500.0,0.0001692,2]
[346730507,1735253450156,-500.0,0.0001692,2]
[346730509,1735253450165,-500.0,0.0001692,2]
[346730511,1735253450176,-500.0,0.0001692,2]
[346730513,1735253450185,-500.0,0.0001692,2]
[346730516,1735253450195,-500.0,0.0001692,2]
[346730517,1735253450204,-500.0,0.0001692,2]
[346730520,1735253450214,-245.11446634,0.0001692,2]
[346730521,1735253450224,-500.0,0.0001692,2]
[346730523,1735253450234,-527.39,0.0001692,2]
[346730532,1735253450310,-500.0,0.0001692,2]
[346730534,1735253450326,-500.0,0.0001692,2]
[346730536,1735253450335,-531.51,0.0001692,2]
[346730538,1735253450344,-500.0,0.0001692,2]
[346730540,1735253450354,-500.0,0.0001692,2]
[346730542,1735253450363,-245.92330406,0.0001692,2]
[346730544,1735253450372,-500.0,0.0001692,2]
[346730546,1735253450381,-623.47,0.0001692,2]
[346730548,1735253450391,-500.0,0.0001692,2]
[346730550,1735253450399,-512.42,0.0001692,2]
[346730552,1735253450408,-423.11561927,0.0001692,2]
[346730554,1735253450417,-500.0,0.0001692,2]
[346730556,1735253450427,-500.0,0.0001692,2]
[346730558,1735253450436,-500.0,0.0001692,2]
[346730560,1735253450446,-500.0,0.0001692,2]
[346730562,1735253450455,-500.0,0.0001692,2]
[346730564,1735253450464,-500.0,0.0001692,2]
[346730566,1735253450473,-500.0,0.0001692,2]
[346730568,1735253450483,-551.94,0.00016921,2]
[346730570,1735253450492,-500.0,0.00016921,2]
[346730572,1735253450501,-10721.13,0.00016921,2]
[346730574,1735253450510,-4578.7,0.00016921,2]
[346730576,1735253450519,-500.0,0.00016921,2]
[346730578,1735253450530,-2016.49,0.00016921,2]
[346730580,1735253450539,-1030.92,0.00016921,2]
[346730582,1735253450548,-824.04,0.00016923,2]
[346730584,1735253450557,-526.88,0.00016923,2]
[346730586,1735253450566,-421.88416398,0.00016923,2]
[346730588,1735253450576,-500.0,0.00016923,2]
[346730590,1735253450585,-500.0,0.00016923,2]
[346730592,1735253450594,-514.05443116,0.00016923,2]
[346730594,1735253450604,-500.0,0.00016923,2]
[346730596,1735253450614,-888.53,0.00016923,2]
[346730598,1735253450624,-500.0,0.00016923,2]
[346730600,1735253450633,-1263.89,0.00016923,2]
[346730602,1735253450643,-500.0,0.00016923,2]
[346730604,1735253450652,-500.0,0.00016923,2]
[346730606,1735253450661,-168.0,0.00016923,2]
[346730608,1735253450670,-1216.85,0.00016923,2]
[346730610,1735253450682,-518.39262382,0.00016923,2]
[346730612,1735253450692,-527.59,0.00016923,2]
[346730614,1735253450701,-500.0,0.00016923,2]
[346730616,1735253450711,-1134.77,0.00016923,2]
[346730618,1735253450720,-500.0,0.00016923,2]
[346730620,1735253450729,-500.0,0.00016923,2]
[346730622,1735253450739,-511.93,0.00016923,2]
[346730624,1735253450748,-500.0,0.00016923,2]
[346730626,1735253450757,-500.0,0.00016923,2]
[346730628,1735253450767,-1818.78,0.00016923,2]
[346730630,1735253450776,-3068.73,0.00016923,2]
[346730632,1735253450785,-500.0,0.00016923,2]
[346730634,1735253450794,-500.0,0.00016923,2]
[346730636,1735253450804,-656.02,0.00016923,2]
[346730638,1735253450813,-500.0,0.00016923,2]
[346730640,1735253450824,-500.0,0.00016923,2]
[346730642,1735253450833,-1676.13,0.00016923,2]
[346730644,1735253450842,-546.73,0.00016923,2]
[346730646,1735253450851,-1744.22,0.00016923,2]
[346730648,1735253450861,-1691.18,0.00016923,2]
[346730650,1735253450871,-1068.42,0.00016923,2]
[346730652,1735253450880,-500.0,0.00016923,2]
[346730655,1735253450894,-1424.64,0.00016923,2]
[346730657,1735253450903,-1184.08,0.00016923,2]
[346730659,1735253450912,-892.88,0.00016923,2]
[346730660,1735253450922,-500.0,0.00016923,2]
[346730663,1735253450936,-500.0,0.00016923,2]
[346730664,1735253450947,-500.0,0.00016923,2]
[346730666,1735253450956,-500.0,0.00016923,2]
[346730668,1735253450966,-500.0,0.00016923,2]
[346730671,1735253450976,-840.63,0.00016923,2]
[346730673,1735253450986,-918.74,0.00016923,2]
[346730675,1735253450995,-1281.87,0.00016923,2]
[346730677,1735253451004,-151.0,0.00016923,2]
[346730679,1735253451013,-500.0,0.00016923,2]
[346730681,1735253451022,-151.0,0.00016923,2]
[346730683,1735253451031,-799.98,0.00016923,2]
[346730685,1735253451040,-514.87,0.00016923,2]
[346730687,1735253451049,-500.0,0.00016923,2]
[346730688,1735253451061,-151.0,0.00016923,2]
[346730690,1735253451069,-500.0,0.00016923,2]
[346730692,1735253451078,-500.0,0.00016923,2]
[346730694,1735253451088,-550.09,0.00016924,2]
[346730696,1735253451098,-377.632616,0.00016924,2]
[346730699,1735253451108,-377.632616,0.00016924,2]
[346730700,1735253451119,-2966.22,0.00016924,2]
[346730703,1735253451130,-2966.22,0.00016924,2]
[346730705,1735253451141,-2966.22,0.00016924,2]
[346730707,1735253451150,-2966.22,0.00016924,2]
[346730709,1735253451160,-2966.45305678,0.00016924,2]
[346730711,1735253451169,-500.0,0.00016924,2]
[346730713,1735253451179,-500.0,0.00016924,2]
[346730714,1735253451188,-500.0,0.00016924,2]
[346730716,1735253451197,-3778.17631287,0.00016924,2]
[346730719,1735253451214,-16989.83999998,0.00016924,2]
[346730869,1735253495001,1235.12102418,0.00015868,2]
[346730870,1735253495024,3510.56589144,0.00015868,2]
[346730871,1735254430114,-400.0,0.00013973,2]
[346730872,1735254430136,-1588.15529816,0.00015459,2]
[346730873,1735254435137,-988.87571104,0.00015459,2]
[346730874,1735254435161,-168.035224,0.00015634,2]
[346730875,1735254435183,-188.1310266,0.00015705,2]
[346730876,1735254435206,-196.12717588,0.00015768,2]
[346730877,1735254435230,-189.0,0.000158,2]
[346730878,1735254435253,-4933.79764978,0.00015868,2]
[346730879,1735254435277,-511.741,0.0001635,2]
[346730880,1735254435301,-300.0,0.0001654,2]
[346730881,1735254435322,-300.0,0.00016541,2]
[346730882,1735254435343,-443.61079051,0.00016542,2]
[346730883,1735254438101,-280.9824455,0.00016542,2]
[346730884,1735254440097,-6214.65535875,0.00016542,2]
[346730885,1735254440119,-500.0,0.00016597,2]
[346730886,1735254440142,-168.66531565,0.00016597,2]
[346730887,1735254440165,-500.0,0.00016597,2]
[346730888,1735254440187,-500.0,0.00016597,2]
[346730889,1735254440210,-500.0,0.00016597,2]
[346730890,1735254440234,-500.0,0.00016597,2]
[346730891,1735254440257,-520.96188015,0.00016597,2]
[346730892,1735254440279,-633.37090077,0.00016597,2]
[346730893,1735254440303,-473.54594453,0.00016597,2]
[346730894,1735254440427,-159.32393815,0.00016597,2]
[346730895,1735254440450,-500.0,0.00016597,2]
[346730896,1735254440472,-500.0,0.00016597,2]
[346730897,1735254440495,-474.37827868,0.00016597,2]
[346730898,1735254440519,-500.0,0.00016597,2]
[346730899,1735254440548,-2201.68,0.00016597,2]
[346730900,1735254440570,-500.0,0.00016597,2]
[346730901,1735254440593,-500.0,0.00016597,2]
[346730902,1735254440618,-500.0,0.00016597,2]
[346730903,1735254440641,-183.02236021,0.00016597,2]
[346730910,1735254552089,-313.908295,0.00013561,2]
[346730911,1735254552112,-8052.45187761,0.00013698,2]
[346730912,1735254552133,-300.0,0.0001562,2]
[346730913,1735254552155,-300.0,0.0001562,2]
[346730914,1735254552177,-5086.4388256,0.00015621,2]
[346730915,1735254552199,-500.0,0.00015697,2]
[346730916,1735254552220,-500.0,0.00015697,2]
[346730917,1735254552243,-7990.56766624,0.00015698,2]
[346730918,1735254553081,-61.88421137,0.00015698,2]
[346730919,1735254553105,-500.0,0.00015971,2]
[346730920,1735254553129,-165.38180679,0.00016245,2]
[346730921,1735254555103,-334.61819321,0.00016245,2]
[346730922,1735254555128,-500.0,0.00016519,2]
[346730923,1735254601788,2109.94,0.00015697,2]
[346730924,1735254602117,475.02440679,0.00015971,2]
[346730925,1735254602142,1634.91559321,0.00015971,2]
[346730926,1735254616072,500.0,0.00015697,2]
[346730927,1735254616334,500.0,0.00015971,2]
[346731012,1735254631933,-2109.94,0.00016245,2]
[346731014,1735254631944,-500.0,0.00016245,2]
[346731017,1735254631954,-155.0,0.00016332,2]
[346731019,1735254631964,-155.0,0.00016332,2]
[346731021,1735254631973,-155.0,0.00016332,2]
[346731023,1735254631983,-155.0,0.00016332,2]
[346731025,1735254631992,-155.0,0.00016332,2]
[346731027,1735254632002,-155.0,0.00016332,2]
[346731029,1735254632011,-155.0,0.00016332,2]
[346731031,1735254632020,-155.0,0.00016332,2]
[346731033,1735254632030,-159.12,0.00016332,2]
[346731035,1735254632040,-2109.94,0.00016519,2]
[346731037,1735254632049,-500.0,0.00016519,2]
[346731039,1735254632059,-300.0,0.00016595,2]
[346731041,1735254632068,-300.0,0.00016595,2]
[346731043,1735254632077,-500.0,0.00016596,2]
[346731045,1735254632087,-177.22663834,0.00016596,2]
[346731048,1735254632106,-500.0,0.00016596,2]
[346731050,1735254632117,-500.0,0.00016596,2]
[346731052,1735254632127,-183.25699303,0.00016596,2]
[346731054,1735254632137,-500.0,0.00016596,2]
[346731056,1735254632147,-342.53843002,0.00016596,2]
[346731058,1735254632157,-500.0,0.00016596,2]
[346731061,1735254632167,-454.96340605,0.00016596,2]
[346731063,1735254632177,-500.0,0.00016596,2]
[346731065,1735254632187,-500.0,0.00016596,2]
[346731067,1735254632196,-329.88030046,0.00016596,2]
[346731069,1735254632206,-500.0,0.00016596,2]
[346731071,1735254632216,-500.0,0.00016596,2]
[346731073,1735254632226,-500.0,0.00016596,2]
[346731074,1735254632236,-500.0,0.00016596,2]
[346731076,1735254632246,-500.0,0.00016596,2]
[346731079,1735254632255,-500.0,0.00016596,2]
[346731081,1735254632267,-500.0,0.00016596,2]
[346731083,1735254632281,-300.0,0.00016596,2]
[346731085,1735254632291,-500.0,0.00016596,2]
[346731087,1735254632301,-500.0,0.00016596,2]
[346731089,1735254632313,-500.0,0.00016596,2]
[346731091,1735254632324,-500.0,0.00016596,2]
[346731093,1735254632334,-500.0,0.00016596,2]
[346731095,1735254632345,-347.35459445,0.00016596,2]
[346731097,1735254632355,-500.0,0.00016596,2]
[346731099,1735254632365,-500.0,0.00016596,2]
[346731101,1735254632375,-384.97032483,0.00016596,2]
[346731103,1735254632385,-883.75,0.00016597,2]
[346731105,1735254632395,-505.95,0.00016597,2]
[346731107,1735254632405,-500.0,0.00016597,2]
[346731109,1735254632415,-9827.7,0.00016597,2]
[346731111,1735254632425,-500.0,0.00016597,2]
[346731113,1735254632435,-511.61430251,0.00016597,2]
[346731115,1735254632445,-4197.14,0.00016597,2]
[346731117,1735254632455,-500.0,0.00016597,2]
[346731119,1735254632465,-1849.9,0.00016597,2]